Cogmind - Beta 13 @@@ ROGUE MODE // 2024.07.13 @ 19:29:14 Player: weedlord420 Result: Destroyed by S-27 Virus with Autogun Performance ------------- Evolutions (6) 3000 Regions Visited (6) 1200 Robots Destroyed (43) 215 Value Destroyed (1259) 1259 Prototype IDs (10) 200 Alien Tech Used (0) 0 Bonus (36) 36 TOTAL SCORE: 5910 Bonus ------- High Alert Combat Kills 12 Follower Combat Kills 151 Friendly Fire -127 Cogmind --------- Core Integrity 0/1150 Matter 253/300 Energy 99/100 System Corruption 1% Temperature Cool (0) Movement Rolling (90) Location -4/Upper Caves Parts ------- > --- POWER (1) -------- (None) > --- PROPULSION (3) --- Centrium Wheel > --- UTILITY (10) ----- (None) > --- WEAPON (5) ------- (None) > --- INVENTORY (5) ---- Power Amplifier Makeshift ECM Suite Peak State ------------ > --- POWER ------------ Ion Engine > --- PROPULSION ------- Armored Treads Medium Treads Medium Treads > --- UTILITY ---------- Scrap Engine Medium Storage Unit Improved Propulsion Shielding Heavy Armor Plating Heavy Armor Plating Advanced Hacking Suite Improved System Shield > --- WEAPON ----------- Improved Arc Projector Gatling Laser Flak Cannon > --- INVENTORY -------- Advanced Signal Interpreter Hardened Medium Armor Plating Improved Medium Armor Plating Advanced Shield Generator Advanced Shield Generator Hacking Suite Advanced Field Recycling Unit Smartbomb Launcher [Rating: 72] Favorites ----------- Power Light Nuclear Core Engine Ion Engine Power Core Light Nuclear Core Propulsion Armored Wheel Treads Light Treads Wheel Armored Wheel Flight Unit Constructs Utility Medium Storage Unit Device Scrap Engine Storage Medium Storage Unit Processor Salvage Targeting Computer Hackware Hacking Suite Protection Heavy Armor Plating Weapon Assault Rifle Energy Gun Gatling Laser Ballistic Gun Assault Rifle Ballistic Cannon Flak Cannon Launcher Long-range Missile Launcher Impact Weapon Makeshift Hammer Build | -11 -10 -10 -7 -5 -4 -4 ------- Run | Yrd Mat Sub Rec Fac Fac Upp Slots Evolved 12 | . . . . 10 2 . Power . | . . . . . . . Propulsion 1 | . . . . 1 . . Utility 8 | . . . . 8 . . Weapon 3 | . . . . 1 2 . Parts Attached 60 | 1 15 4 14 20 2 4 Power 4 | . 2 1 1 . . . Engine 2 | . 1 . 1 . . . Core 2 | . 1 1 . . . . Reactor . | . . . . . . . Propulsion 13 | 1 5 . 5 1 . 1 Treads 8 | 1 3 . 3 1 . . Leg . | . . . . . . . Wheel 5 | . 2 . 2 . . 1 Hover . | . . . . . . . Flight . | . . . . . . . Utility 23 | . 3 . 2 16 1 1 Device 7 | . . . . 5 1 1 Storage 2 | . 2 . . . . . Processor 1 | . 1 . . . . . Hackware 4 | . . . . 4 . . Protection 9 | . . . 2 7 . . Artifact . | . . . . . . . Weapon 20 | . 5 3 6 3 1 2 Energy Gun 6 | . . . 2 2 1 1 Energy Cannon . | . . . . . . . Ballistic Gun 7 | . 4 1 2 . . . Ballistic Cannon 2 | . . . 2 . . . Launcher 4 | . 1 2 . 1 . . Special Weapon . | . . . . . . . Impact Weapon 1 | . . . . . . 1 Slashing Weapon . | . . . . . . . Piercing Weapon . | . . . . . . . Special Melee Weapon . | . . . . . . . Unidentified Prototypes . | . . . . . . . Parts Lost 25 | . . 1 2 16 3 3 Power 2 | . . 1 . 1 . . Propulsion 7 | . . . 1 5 1 . Utility 11 | . . . . 8 2 1 Weapon 5 | . . . 1 2 . 2 Highest Loss Streak 8 | . . 1 2 8 3 3 To Critical Strikes 2 | . . . . 2 . . Average Slot Usage (%) 78 | . 98 99 99 57 15 16 Engine 3 | . 1 . 8 4 . . Core 6 | . 12 13 5 . . . Treads 10 | . 13 . 13 10 . . Wheel 10 | . 14 28 14 . . 4 Device 2 | . . . . 6 10 3 Storage 9 | . 14 14 14 4 . . Processor 6 | . 13 14 . . . . Hackware 1 | . . . . 5 . . Protection 5 | . . . 13 13 . . Energy Gun 2 | . . . 7 3 1 3 Ballistic Gun 14 | . 27 26 9 . . . Ballistic Cannon 2 | . . . 10 3 . . Naked Turns . | . . . . . . . Heaviest Build 66 | . 20 20 33 66 8 9 Greatest Support 76 | 20 40 24 48 76 19 16 Greatest Overweight (x) 1 | . . . 1 1 . . Average Overweight (x) . | . . . . . . . Largest Inventory Capacity 10 | 5 10 10 10 10 5 5 Average Capacity 8 | 5 9 10 10 9 5 5 Most Carried 10 | 5 10 10 10 10 3 4 Average Carried 7 | 4 8 10 9 5 1 1 Final Capacity 10 | 5 10 10 10 5 5 5 Final Carried 10 | 5 10 10 10 . 1 2 Scrap Engine Consumption 21 | . . . . 14 7 . Constructs Created 4 | . . . . 3 1 . Constructs Modified 3 | . . . . 3 . . Class Distribution -------------------- 73% | Mutant 15% | Commander-Mutant 7% | Scavenger-Mutant Dominant Class ---------------- Mutant | -10/Materials Mutant | -10/Subcaves Commander-Mutant | -7/Recycling Mutant | -5/Factory Mutant | -4/Factory Mutant | -4/Upper Caves Resources | -11 -10 -10 -7 -5 -4 -4 ----------- Run | Yrd Mat Sub Rec Fac Fac Upp Matter Collected 1527 | 185 594 134 370 220 . 24 Remotely . | . . . . . . . Salvage Created 1596 | . 796 126 382 292 . . Parts 82 | . 51 8 13 10 . . Haulers Intercepted 3 | . 2 . . 1 . . Recyclers Shooed 2 | . 1 . 1 . . . Parts Field Recycled . | . . . . . . . Retrieved Matter . | . . . . . . . Parts Self-Destructed 13 | . . 13 . . . . Prevented . | . . . . . . . Kills | -11 -10 -10 -7 -5 -4 -4 ------- Run | Yrd Mat Sub Rec Fac Fac Upp Combat Hostiles Destroyed 26 | . 13 6 2 5 . . Guns 20 | . 13 4 1 2 . . Cannons 3 | . . . 1 2 . . AOE 3 | . . 2 . 1 . . Classes Destroyed 11 | . 4 2 4 1 . . Worker 2 | . . . . 2 . . Hauler 3 | . 2 . . 1 . . Recycler 4 | . . . 4 . . . Operator 2 | . 2 . . . . . Turret 2 | . . 2 . . . . Watcher 3 | . 3 . . . . . Swarmer 4 | . . 4 . . . . Grunt 17 | . 13 2 . 2 . . Duelist 1 | . . . 1 . . . Hunter 3 | . . . 1 2 . . Programmer 2 | . . . 1 1 . . Best Kill Streak 3 | . 2 3 3 2 . . Combat Bots Only 3 | . 2 3 1 2 . . Max Kills in Single Turn 2 | . 1 2 1 1 . . Gunslinging . | . . . . . . . Exploded 2 | . . 2 . 1 . . Melee . | . . . . . . . Uniques/NPCs Destroyed . | . . . . . . . Combat | -11 -10 -10 -7 -5 -4 -4 -------- Run | Yrd Mat Sub Rec Fac Fac Upp Hostile Shots Fired 476 | . 50 93 15 203 57 58 Missed 154 | . 14 37 3 70 16 14 Damage Taken 5239 | . 425 460 180 2472 998 704 Core 2233 | . 101 66 42 864 724 436 Absorbed by Shields 25 | . . . . 25 . . Redirected to Shielding 76 | . . . 7 69 . . Regen/Repaired (Parts) 177 | . 156 . . 21 . . Core Remaining (%) 43 | 100 . . 16 13 . . Volleys Fired 146 | . 75 28 18 21 4 . Largest 3 | . 2 2 2 3 1 . Hottest 189 | . 50 50 124 189 65 . Shots Fired 277 | . 150 51 29 43 4 . Gun 242 | . 149 44 18 27 4 . Cannon 25 | . . . 11 14 . . Launcher 10 | . 1 7 . 2 . . Special . | . . . . . . . Kinetic 234 | . 149 44 27 14 . . Thermal 19 | . . . 2 17 . . Explosive 10 | . 1 7 . 2 . . Electromagnetic 14 | . . . . 10 4 . Robot Hit Streak 14 | . 14 6 6 12 4 . Robot Miss Streak 7 | . 7 4 4 4 . . Penetration Max . | . . . . . . . Secondary Targets . | . . . . . . . Shots Hit Robots 170 | . 90 23 17 36 3 1 Core Hits 107 | . 39 14 15 38 1 . Critical Kills . | . . . . . . . Critical Parts Destroyed 2 | . 2 . . . . . Critical Strikes 2 | . 2 . . . . . Destroy 2 | . 2 . . . . . Melee Attacks 4 | . . . . . . 4 Impact 4 | . . . . . . 4 Slashing . | . . . . . . . Piercing . | . . . . . . . Sneak Attacks . | . . . . . . . Combat Hostiles . | . . . . . . . Follow-up Attacks . | . . . . . . . Damage Inflicted 3641 | . 1188 518 371 1413 105 46 Guns 2151 | . 1187 246 162 487 69 . Cannons 484 | . . . 209 275 . . Explosions 840 | . . 272 . 568 . . Melee 46 | . . . . . . 46 Ramming 120 | . 1 . . 83 36 . Kinetic 2039 | . 1187 246 331 275 . . Thermal 762 | . . . 40 722 . . Explosive 512 | . . 272 . 240 . . Electromagnetic 162 | . . . . 93 69 . Impact 46 | . . . . . . 46 Slashing . | . . . . . . . Piercing . | . . . . . . . Highest Corruption 3 | . . . 1 3 1 1 Average Corruption 1 | . . . 1 1 1 1 Corruption Purged . | . . . . . . . Corruption Blocked . | . . . . . . . Effects 11 | . . . 6 2 1 2 Message Errors 2 | . . . 1 . 1 . Matter Fused 3 | . . . 2 . . 1 Heat Flow Errors 4 | . . . 2 1 . 1 Parts Rejected 2 | . . . 1 1 . . Overload Shots . | . . . . . . . Overflow Damage 277 | . . 25 . 231 . 21 Projectiles . | . . . . . . . Explosions 256 | . . 25 . 231 . . Melee 21 | . . . . . . 21 Knockbacks 16 | . . . 1 14 . 1 Impact 1 | . . . . . . 1 Kinetic 15 | . . . 1 14 . . Secondary . | . . . . . . . Self-Inflicted Damage 377 | . . 9 . 350 18 . Shots 6 | . . 1 . 5 . . Rammed 19 | . 1 . 1 15 2 . Targets Rammed 19 | . 1 . 1 15 2 . Kicked . | . . . . . . . Crushed . | . . . . . . . Highest Temperature 463 | . 8 8 257 463 . 231 Average Temperature 96 | . 1 8 72 132 . 123 Received Heat Transfer 1047 | . 237 267 18 429 96 . Effects 3 | . . . . 3 . . Shutdowns 1 | . . . . 1 . . Interference 1 | . . . . 1 . . Short Circuit 1 | . . . . 1 . . Siege Activations . | . . . . . . . Robots Corrupted . | . . . . . . . Combat Hostiles . | . . . . . . . Parts Fried . | . . . . . . . Impact Corruptions 1 | . . . . . . 1 Robots Melted . | . . . . . . . Combat Hostiles . | . . . . . . . Parts Melted 1 | . . . . 1 . . Heat Transferred 1150 | . . . 100 1050 . . Parts Sabotaged . | . . . . . . . Parts Stolen . | . . . . . . . Parts Stripped . | . . . . . . . Power Chain Reactions . | . . . . . . . Alert | -11 -10 -10 -7 -5 -4 -4 ------- Run | Yrd Mat Sub Rec Fac Fac Upp Peak Influence 408 | . 159 . 408 255 139 . Initial 372 | . . . 372 67 124 . Average 105 | . 44 . 320 50 109 . Maximum Alert Level 2 | . . . 2 1 . . Low Security (%) 82 | 100 100 . 15 94 100 . Level 1 10 | . . . 48 5 . . Level 2 7 | . . . 36 . . . Level 3 . | . . . . . . . Level 4 . | . . . . . . . Level 5 . | . . . . . . . High Security . | . . . . . . . Max Security . | . . . . . . . Squads Dispatched 9 | . 4 . . 4 1 . Investigation 2 | . 2 . . . . . Extermination 2 | . . . . 1 1 . Reinforcement 5 | . 2 . . 3 . . Assault . | . . . . . . . Garrison . | . . . . . . . Intercept . | . . . . . . . Searches Triggered . | . . . . . . . Construction Impeded . | . . . . . . . Haulers Reinforced . | . . . . . . . Active Scanning Responses . | . . . . . . . Cargo Convoy Interrupts . | . . . . . . . Stealth | -11 -10 -10 -7 -5 -4 -4 --------- Run | Yrd Mat Sub Rec Fac Fac Upp Distress Signals 6 | . 3 . 1 2 . . Communications Jammed . | . . . . . . . Distress Signals . | . . . . . . . Times Spotted 98 | . 19 34 6 22 11 6 Peak Tracking Total 7 | . 3 4 2 6 7 5 Tactical Retreats 14 | . . 4 . 5 3 2 Traps | -11 -10 -10 -7 -5 -4 -4 ------- Run | Yrd Mat Sub Rec Fac Fac Upp Traps Triggered 2 | . 2 . . . . . Indirectly . | . . . . . . . Trap Hack Attempts . | . . . . . . . Triggered . | . . . . . . . Disarmed . | . . . . . . . Reprogrammed . | . . . . . . . Reused . | . . . . . . . Traps Extracted . | . . . . . . . Installed . | . . . . . . . Triggered . | . . . . . . . Machines | -11 -10 -10 -7 -5 -4 -4 ---------- Run | Yrd Mat Sub Rec Fac Fac Upp Machines Disabled 10 | . . 4 . 6 . . Max in Single Turn 4 | . . 2 . 4 . . Garrison Access 1 | . . . . 1 . . Machines Repaired . | . . . . . . . Machines Dismantled . | . . . . . . . Machines Sabotaged . | . . . . . . . Overloaded Fab Kills . | . . . . . . . Hacking | -11 -10 -10 -7 -5 -4 -4 --------- Run | Yrd Mat Sub Rec Fac Fac Upp Machines Accessed 15 | . 6 . 3 6 . . Terminals 10 | . 5 . 3 2 . . Fabricators . | . . . . . . . Repair Stations 3 | . 1 . . 2 . . Recycling Units . | . . . . . . . Scanalyzers 1 | . . . . 1 . . Garrison Access 1 | . . . . 1 . . Total Hacks 30 | . 13 . 5 12 . . Successful 18 | . 9 . 4 5 . . Failed 12 | . 4 . 1 7 . . Catastrophic 3 | . 2 . . 1 . . Database Lockouts . | . . . . . . . Manual . | . . . . . . . Terminals 18 | . 9 . 5 4 . . Fabricators . | . . . . . . . Repair Stations 7 | . 4 . . 3 . . Recycling Units . | . . . . . . . Scanalyzers 3 | . . . . 3 . . Garrison Access 2 | . . . . 2 . . Terminal Hacks 9 | . 5 . 4 . . . Record 1 | . . . 1 . . . Prototype ID Bank 3 | . 1 . 2 . . . Emergency Access Points 1 | . 1 . . . . . Alert Level 1 | . . . 1 . . . Unreport Threat 1 | . 1 . . . . . Registered Components 1 | . 1 . . . . . Zone Layout 1 | . 1 . . . . . Fabricator Hacks . | . . . . . . . Repair Station Hacks 5 | . 4 . . 1 . . Scan Component 3 | . 2 . . 1 . . Repair 2 | . 2 . . . . . Recycling Unit Hacks . | . . . . . . . Scanalyzer 3 | . . . . 3 . . Insert Component 1 | . . . . 1 . . Analyze 2 | . . . . 2 . . Garrison Access Hacks 1 | . . . . 1 . . Seal Access 1 | . . . . 1 . . Unauthorized Hacks . | . . . . . . . Terminals . | . . . . . . . Fabricators . | . . . . . . . Repair Stations . | . . . . . . . Recycling Units . | . . . . . . . Scanalyzers . | . . . . . . . Garrison Access . | . . . . . . . Data Cores Recovered . | . . . . . . . Used . | . . . . . . . Hacking Detections 11 | . 4 . 3 4 . . Full Trace Events 1 | . 1 . . . . . Feedback Events . | . . . . . . . Feedback Blocked . | . . . . . . . Robot Schematics Acquired . | . . . . . . . Robots Built . | . . . . . . . Authchips . | . . . . . . . Time . | . . . . . . . Total Robot Build Rating . | . . . . . . . Part Schematics Acquired 1 | . . . . 1 . . Parts Built . | . . . . . . . Authchips . | . . . . . . . Time . | . . . . . . . Total Part Build Rating . | . . . . . . . Parts Repaired 2 | . 2 . . . . . Time 52 | . 52 . . . . . Parts Recycled . | . . . . . . . Recycled Matter . | . . . . . . . Retrieved Matter . | . . . . . . . Retrieved Components . | . . . . . . . Parts Scanalyzed 1 | . . . . 1 . . Part Schematics Acquired 1 | . . . . 1 . . Parts Damaged . | . . . . . . . Bothacking | -11 -10 -10 -7 -5 -4 -4 ------------ Run | Yrd Mat Sub Rec Fac Fac Upp Used RIF Installer . | . . . . . . . Robots Hacked . | . . . . . . . Non-combat . | . . . . . . . Combat . | . . . . . . . Robot Hacks Applied . | . . . . . . . Relay Couplers Released . | . . . . . . . Fabnet Peak Effective % . | . . . . . . . Robots Rewired 12 | . . . 12 . . . Allies Hacked . | . . . . . . . Hacks Repelled . | . . . . . . . Allies | -11 -10 -10 -7 -5 -4 -4 -------- Run | Yrd Mat Sub Rec Fac Fac Upp Total Allies 12 | . . . 12 . . . Largest Group 10 | . . . 10 10 . . Highest-Rated Group 218 | . . . 218 218 . . Highest-Rated Ally 34 | . . . 34 34 . . Total Orders 9 | . . . . 9 . . ROAM 7 | . . . . 7 . . DROP 1 | . . . . 1 . . COLLECT 1 | . . . . 1 . . Ally Attacks 24 | . . . 17 7 . . Total Damage 517 | . . . 287 230 . . Kills 4 | . . . 3 1 . . Allies Corrupted . | . . . . . . . Allies Melted . | . . . . . . . Intel | -11 -10 -10 -7 -5 -4 -4 ------- Run | Yrd Mat Sub Rec Fac Fac Upp Robot Analysis Total . | . . . . . . . Derelict Logs Recovered 1 | . . 1 . . . . Drone Launches . | . . . . . . . Drone Recoveries . | . . . . . . . Exploration | -11 -10 -10 -7 -5 -4 -4 ------------- Run | Yrd Mat Sub Rec Fac Fac Upp Turns Passed 5529 | 40 2133 463 942 1257 479 215 Spaces Moved 3443 | 34 964 418 567 907 337 216 Core 570 | 18 . . . 346 189 17 Treads 1119 | 16 450 . 250 403 . . Legs 144 | . . . . 144 . . Wheels 1448 | . 514 418 317 . . 199 Hover 14 | . . . . 14 . . Flight 148 | . . . . . 148 . Fastest Speed 50 | 50 90 90 90 50 50 50 Average Speed 109 | 101 122 90 126 114 69 86 Slowest Speed 250 | 160 160 90 250 163 95 90 Overloaded Moves . | . . . . . . . Propulsion Burnouts . | . . . . . . . Robots Hopped 2 | . . . . . 2 . Cave-ins Triggered . | . . . . . . . Exploration Rate (%) 40 | 4 97 34 94 20 8 25 Regions Visited 6 Branch Regions 3 Pre-discovered Areas . | . . . . . . . Known Exits Taken . | . . . . . . . Unknown Exits Taken 6 | 1 1 1 1 1 1 . Scrap Searched 1 | . . . . . . 1 Spaces Dug 7 | . 7 . . . . . Terrain Destroyed 116 | . 7 16 2 91 . . Melee . | . . . . . . . Projectile 2 | . . . 2 . . . AOE 114 | . 7 16 . 91 . . Terrain Rammed . | . . . . . . . Walls Destroyed . | . . . . . . . Machines Disabled . | . . . . . . . Actions | -11 -10 -10 -7 -5 -4 -4 --------- Run | Yrd Mat Sub Rec Fac Fac Upp Total 4923 | 39 1766 451 767 1086 574 240 Wait 1064 | . 678 2 42 102 229 11 Move 3433 | 33 963 417 566 906 332 216 Hop 2 | . . . . . 2 . Pick Up 56 | 5 22 . 11 11 3 4 Fast Attach 11 | 1 2 1 5 2 . . Attach 35 | . 7 . 6 16 2 4 Detach 6 | . . . . 5 . 1 Swap 14 | . 6 3 3 2 . . Drop 34 | . 12 . 16 6 . . Fire 146 | . 75 28 18 21 4 . Melee 4 | . . . . . . 4 Ram 18 | . . . 1 15 2 . Kick . | . . . . . . . Crush 1 | . 1 . . . . . Escape Stasis . | . . . . . . . Rewire 99 | . . . 99 . . . Trap . | . . . . . . . Miscellaneous . | . . . . . . . Route ------- -11/Scrapyard -10/Materials (discovered 6 exits: [*Mat x3] / [*Min x2] / [*Sub]) -10/Subcaves -7/Recycling -5/Factory (discovered 2 exits: [*Fac] / [*Upp]) -4/Factory -4/Upper Caves History --------- Turn | Location | Event 5 | -11/Scrapyard | Discovered new exit (range 16) 41 | -11/Scrapyard | Entered Materials 160 | -10/Materials | Discovered new exit (range 14) 245 | -10/Materials | Discovered new exit (range 16) 304 | -10/Materials | Build established: Mutant 635 | -10/Materials | Discovered new exit (range 16) 679 | -10/Materials | Discovered new exit (range 16) 923 | -10/Materials | Repaired Assault Rifle 950 | -10/Materials | Repaired Lgt. Treads 1260 | -10/Materials | Discovered new exit (range 13) 2137 | -10/Materials | Discovered new exit (range 3) 2174 | -10/Materials | Entered Subcaves 2587 | -10/Subcaves | Core integrity fell below 50% 2607 | -10/Subcaves | Discovered new exit (range 12) 2637 | -10/Subcaves | Entered Recycling 2638 | -7/Recycling | Joined Warlord attack on 0b10 via Recycling 2644 | -7/Recycling | Found Scrap Engine 3059 | -7/Recycling | Core integrity fell below 20% 3167 | -7/Recycling | Build established: Commander-Mutant 3533 | -7/Recycling | Discovered new exit (range 15) 3579 | -7/Recycling | Entered Factory 3579 | -5/Factory | Accompanied by 10 allies 3579 | -5/Factory | Evolved 10 slots: Propulsion x1, Utility x8, Weapon x1 3734 | -5/Factory | Lost 4 allies 4000 | -5/Factory | Build established: Scavenger-Mutant 4111 | -5/Factory | Discovered new exit (range 7) 4210 | -5/Factory | Discovered new exit (range 14) 4409 | -5/Factory | Lost 8 parts (3n4u1w) 4634 | -5/Factory | Lost 6 parts (1p2n2u1w) 4646 | -5/Factory | Build established: Mutant 4670 | -5/Factory | Core integrity fell below 50% 4779 | -5/Factory | Core integrity fell below 20% 4836 | -5/Factory | Entered another Factory area 4836 | -4/Factory | Evolved 2 slots: Weapon x2 4855 | -4/Factory | Discovered new exit (range 11) 5293 | -4/Factory | Lost 3 parts (1n2u) 5314 | -4/Factory | Core integrity fell below 50% 5315 | -4/Factory | Entered Upper Caves 5383 | -4/Upper Caves | Encountered a Warlord checkpoint 5504 | -4/Upper Caves | Core integrity fell below 20% 5530 | -4/Upper Caves | Destroyed by S-27 Virus with Autogun Last Messages --------------- Found Variable Charge Gun. Found Power Amplifier. Found Mak. ECM Suite. Found 24 Matter. Acquired 24 matter. Acquired Power Amplifier. Acquired Variable Charge Gun. Acquired Mak. Hammer. Acquired Mak. ECM Suite. 29-KEE(M): "If you spot any more Unaware lurking around the area, let us know." System corrupted: Matter fused (-10). System corrupted: Heat flow error (+274). Adv. Cryofiber Web destroyed. Variable Charge Gun destroyed. Destroyed VTOL Module. S-27 Virus system corrupted by crushing effect. S-27 Virus knocked back. 29-KEE(M) destroyed. Mak. Hammer destroyed. Map ----- +----------------------------------------------------+ | ##### ### ####??## #### ####### | | ??#% #### ## | | ??# | | ??# ###### ## %% | | ??# #?????## ### ####% | | ??# ???????# ### ##??## * #### | | ?# ????????# ### ###????## !%! #??## ## | | # ?????????# ######?####??## ! #???##### | | ??????????# #?### #???# #???????# | | ???????# # ### #???# #???????# | | ????????## ## #???# ### ##???????# | | ??????????## ### ##???# #?# #????????# | | ???????????# ##?## #????# #?# #????????### | | ???????????##????# ## ###### #?# ??????????? | | ???????????##???## ## #?# ?????????? | | ??????????## #?## ## #?### ??#????#? | | ??????????# ## ## #######???? #?# ?# | | ??????????# ## ##?????????? #?## # | | ???????????# ## ##??????????? #?# | | ???????????# ##???#####?????# ?# | | ???????????# #???# ??????? #?# | | ????????#### #####?? ????????? #??????# | | ????????# ##?????? ???????????# ??????# | | ????? $ ### #?????? #???????????????????? | | ???????????## ####### #??????????????????? | | ???????????# ss @ #??????????????????## | | ??????????# ## s #?????????????????? | | ??????????## ##?############?????????????????#### | | ???????????###???????????????????????????????????? | | ?????????????????????????????????????????????????? | | ?????????????????????????????????????????????????? | | ?????????????????????????????????????????????????? | | ?????????????????????????????????????????????????? | | ?????????????????????????????????????????????????? | | ?????????????????????????????????????????????????? | | ?????????????????????????????????????????????????? | | ?????????????????????????????????????????????????? | | ?????????????????????????????????????????????????? | | ?????????????????????????????????????????????????? | | ?????????????????????????????????????????????????? | | ?????????????????????????????????????????????????? | | ?????????????????????????????????????????????????? | | ?????????????????????????????????????????????????? | | ?????????????????????????????????????????????????? | | | | | | | | | | | | | +----------------------------------------------------+ Best States ------------- Heat Dissipation 67 Energy Generation 18 Energy Capacity 250 Matter Stores 300 Matter Capacity 300 Sight Range 16 Terrain Scan Density 10 Base Temperature (-) 200 Armor Coverage 1425 Core Shielding 20 Propulsion Shielding 66 Weapon Cycling 15 Evasion (%) 51 Recoil Reduction 3 Salvage Targeting 1 Offensive Hacking 14 Defensive Hacking 12 Item Schematics ----------------- Hvy. Armor Plating | -5/Factory | Scanalyzed Robot Schematics ------------------ None Fabricated ------------ Nothing Alien Tech Used ----------------- None Achievements -------------- A New Friend Challenges ------------ None Game ------ Seed PotentialDeepAmplifier Manual? 0 Play Time 00:41:20 Cumulative 31.1 hours Start 2024.07.13 @ 18:48:30 End 2024.07.13 @ 19:29:14 Sessions 1 Manual Loads 0 Difficulty Rogue Special Mode None Game No. 70 Rogue 69 Adventurer 1 Explorer 0 Win Type - Total 0 Types 0/0/0/0/0/0/0/0/0 Lore% 16 Gallery% 30 Achievement% 26 Wizard Run 0 Options --------- Layout 1 ASCII 0 Keyboard 0 Movement Mouse Keybinds 0 Fullscreen 2 Font 24/Terminus Map View 50x35 Zoom Use 0% Tactical HUD 0 Map Filters NONE Filters NONE Steam 1 RUN: 473760c7-a3b2-4260-bee0-1d22d8b9fd55